bitfinex/quotes_SOLUSD_20230903
["timestamp","ask_amount","ask_price","bid_price","bid_amount"]
[1693756213375,51.62,19.349,19.336,58.05052136]
[1693756219784,51.62,19.349,19.336,3.05052136]
[1693756220287,51.62,19.349,19.334,3.05052136]
[1693756221273,51.62,19.349,19.334,58.05052136]
[1693756221886,51.62,19.349,19.335,20.0]
[1693756222096,51.62,19.349,19.336,58.05052136]
[1693756222383,20.0,19.348,19.336,3.05052136]
[1693756222580,8.064,19.346,19.324,3.05052136]
[1693756222785,38.02,19.34,19.324,38.49749496]
[1693756223890,38.02,19.34,19.324,23.05052136]
[1693756224492,38.02,19.34,19.326,3.05052136]
[1693756230989,38.02,19.34,19.325,23.05052136]
[1693756231180,38.02,19.34,19.325,3.05052136]
[1693756231381,38.02,19.34,19.325,23.05052136]
[1693756231892,38.02,19.34,19.325,3.05052136]
[1693756232596,38.02,19.34,19.325,58.05052136]
[1693756233095,89.64,19.34,19.325,58.05052136]
[1693756233494,89.64,19.34,19.325,3.05052136]
[1693756233495,38.02,19.34,19.325,3.05052136]
[1693756233789,38.02,19.34,19.31,138.02]
[1693756233790,38.02,19.34,19.324,3.05052136]
[1693756233995,38.02,19.33,19.316,3.05052136]
[1693756234499,38.02,19.33,19.311,3.05052136]
[1693756234675,38.02,19.33,19.311,99.82242136]
[1693756234875,51.62,19.335,19.311,99.82242136]
[1693756235287,38.02,19.33,19.313,3.05052136]
[1693756236098,130.0148,19.33,19.313,3.05052136]
[1693756236288,130.0148,19.33,19.312,3.05052136]
[1693756237496,130.0148,19.33,19.312,58.05052136]
[1693756237688,130.0148,19.33,19.313,20.0]
[1693756237882,130.0148,19.33,19.314,58.05052136]
[1693756238084,130.0148,19.33,19.315,20.0]
[1693756238286,38.02,19.33,19.316,58.05052136]
[1693756238491,51.62,19.334,19.316,58.05052136]
[1693756240198,8.067,19.338,19.316,58.05052136]
[1693756240400,38.02,19.34,19.32,38.02]
[1693756240598,38.02,19.34,19.321,78.05052136]
[1693756241301,51.62,19.339,19.321,78.05052136]
[1693756242099,51.62,19.339,19.321,129.67052136]
[1693756242404,38.02,19.33,19.321,3.05052136]
[1693756242700,38.02,19.33,19.312,23.05052136]
[1693756242895,38.02,19.33,19.313,20.0]
[1693756243099,38.02,19.33,19.314,3.05052136]
[1693756243399,38.02,19.33,19.312,41.07052136]
[1693756243605,38.02,19.33,19.314,3.05052136]
[1693756245206,38.02,19.33,19.312,3.05052136]
[1693756245591,38.02,19.33,19.312,58.05052136]
[1693756245803,38.02,19.33,19.313,20.0]
[1693756246093,38.02,19.33,19.314,58.05052136]
[1693756246301,38.02,19.33,19.316,3.05052136]
[1693756246488,38.02,19.33,19.316,58.05052136]
[1693756248790,97.5167,19.336,19.318,3.05052136]
[1693756248990,147.60026314,19.336,19.318,58.05052136]
[1693756249394,139.53326314,19.336,19.318,58.05052136]
[1693756249607,51.62,19.335,19.318,58.05052136]
[1693756252891,38.02,19.33,19.318,58.05052136]
[1693756254711,37.52,19.33,19.318,58.05052136]
[1693756256106,37.52,19.33,19.318,83.84110182]
[1693756256311,149.1367,19.336,19.32,38.02]
[1693756256505,149.1367,19.336,19.321,103.84110182]
[1693756256704,97.5167,19.336,19.321,103.84110182]
[1693756262215,97.5167,19.336,19.321,48.84110182]
[1693756263720,97.5167,19.336,19.323,3.05052136]
[1693756264023,97.5167,19.336,19.323,23.05052136]
[1693756264201,97.5167,19.336,19.325,3.05052136]
[1693756264404,97.5167,19.336,19.325,23.05052136]
[1693756264606,97.5167,19.336,19.327,3.05052136]
[1693756264805,97.5167,19.336,19.326,55.0]
[1693756265005,97.5167,19.336,19.327,0.62353382]
[1693756265201,97.5167,19.336,19.326,55.0]
[1693756265627,97.5167,19.336,19.327,0.81383301]
[1693756274513,65.04117145,19.34,19.327,0.81383301]
[1693756276828,65.04117145,19.34,19.326,55.0]
[1693756282628,65.04117145,19.34,19.327,0.67481677]
[1693756283532,38.02,19.34,19.327,0.60265922]
[1693756283720,38.02,19.34,19.326,55.0]
[1693756283920,38.02,19.34,19.327,0.93438758]
[1693756285429,38.02,19.34,19.327,26.72496804]
[1693756285726,38.02,19.34,19.329,0.93438758]
[1693756286119,38.02,19.34,19.328,55.0]
[1693756286632,38.02,19.34,19.329,0.63446102]
[1693756288335,38.02,19.34,19.328,55.0]
[1693756294943,38.02,19.34,19.314,38.20892371]
[1693756295235,35.08529727,19.339,19.321,23.05052136]
[1693756296342,35.08529727,19.339,19.323,3.05052136]
[1693756296540,35.08529727,19.339,19.323,23.05052136]
[1693756296742,35.08529727,19.339,19.324,55.0]
[1693756296945,27.01929727,19.339,19.325,23.05052136]
[1693756297239,27.01929727,19.339,19.327,3.05052136]
[1693756297437,27.01929727,19.339,19.326,55.0]
[1693756301545,27.01929727,19.339,19.327,0.62838677]
[1693756302534,38.02,19.34,19.327,0.62838677]
[1693756308978,38.02,19.34,19.328,25.79058046]
[1693756309155,38.02,19.34,19.329,56.40915526]
[1693756309457,92.3902,19.342,19.331,1.45714789]
[1693756309837,92.3902,19.342,19.331,56.45714789]
[1693756310249,58.84563114,19.347,19.333,1.86604852]
[1693756310543,51.62,19.349,19.333,56.86604852]
[1693756310845,38.02,19.34,19.335,1.86604852]
[1693756311045,51.62,19.348,19.335,1.86604852]
[1693756311246,51.62,19.348,19.335,55.0]
[1693756319363,78.63157946,19.348,19.335,55.0]
[1693756323065,27.01157946,19.348,19.336,0.68415246]
[1693756323667,51.62,19.349,19.335,55.0]
[1693756323859,48.62,19.349,19.336,1.25639717]
[1693756324061,137.1283,19.35,19.336,1.25639717]
[1693756326664,38.02,19.35,19.336,1.25639717]
[1693756326872,27.00269625,19.356,19.337,25.79058046]
[1693756327176,27.00269625,19.356,19.339,3.05052136]
[1693756327756,27.00269625,19.356,19.339,28.84110182]
[1693756327962,27.00269625,19.356,19.34,75.0]
[1693756328172,27.00269625,19.356,19.341,3.05052136]
[1693756329168,149.4864,19.359,19.341,3.05052136]
[1693756329372,149.4864,19.359,19.341,28.84110182]
[1693756329576,149.4864,19.359,19.342,55.0]
[1693756329764,149.4864,19.359,19.343,23.05052136]
[1693756330073,149.4864,19.359,19.344,55.0]
[1693756330271,149.4864,19.359,19.345,23.05052136]
[1693756330569,149.4864,19.359,19.346,55.0]
[1693756330959,149.4864,19.359,19.345,20.0]
[1693756331166,149.4864,19.359,19.342,20.0]
[1693756331367,149.4864,19.359,19.343,0.6134544]
[1693756332868,149.4864,19.359,19.343,55.6134544]
[1693756333058,97.8664,19.359,19.345,0.80287982]
[1693756333261,97.8664,19.359,19.345,20.0]
[1693756333459,97.8664,19.359,19.346,55.0]
[1693756336675,51.62,19.358,19.346,55.0]
[1693756339675,78.61639251,19.357,19.346,55.0]
[1693756348082,78.61639251,19.357,19.341,15.78800413]
[1693756348285,38.02,19.35,19.342,21.10590111]
[1693756348779,38.02,19.35,19.342,20.0]
[1693756349277,38.02,19.35,19.343,0.79972832]
[1693756349477,38.02,19.35,19.343,55.79972832]
[1693756349688,38.02,19.35,19.344,20.0]
[1693756349885,38.02,19.35,19.345,55.0]
[1693756351680,78.61639251,19.357,19.345,55.0]
[1693756351981,78.61639251,19.357,19.346,0.80266037]
[1693756352183,51.62,19.358,19.345,55.0]
[1693756352483,51.62,19.358,19.346,0.65988333]
[1693756352682,51.62,19.358,19.345,55.0]
[1693756353084,124.86131013,19.359,19.345,55.0]
[1693756353276,51.62,19.358,19.346,0.87912481]
[1693756353583,51.62,19.358,19.345,55.0]
[1693756359886,97.8664,19.359,19.345,55.0]
[1693756360671,97.8664,19.359,19.346,0.58071511]
[1693756360967,97.8664,19.359,19.346,0.74883845]
[1693756361371,97.8664,19.359,19.345,55.0]
[1693756361585,97.8664,19.359,19.346,0.65300117]
[1693756362088,97.8664,19.359,19.345,110.0]
[1693756362474,38.02,19.36,19.346,1.10500742]
[1693756362673,38.02,19.36,19.345,110.0]
[1693756363175,38.02,19.36,19.346,0.98712684]
[1693756363379,38.02,19.36,19.345,110.0]
[1693756370198,38.02,19.36,19.346,0.68828246]
[1693756370500,38.02,19.36,19.345,110.0]
[1693756371695,38.02,19.36,19.346,0.96391218]
[1693756372183,38.02,19.36,19.345,110.0]
[1693756373083,38.02,19.36,19.346,0.88754937]
[1693756373386,38.02,19.36,19.345,110.0]
[1693756373586,38.02,19.36,19.346,0.83815649]
[1693756373794,38.02,19.36,19.345,110.0]
[1693756373999,38.02,19.36,19.346,0.8054458]
[1693756374199,38.02,19.36,19.345,110.0]
[1693756374382,38.02,19.36,19.346,0.85266006]
[1693756374582,38.02,19.36,19.345,110.0]
[1693756374974,38.02,19.36,19.346,0.74021921]
[1693756375283,38.02,19.36,19.345,110.0]
[1693756377094,38.02,19.36,19.346,0.74822908]
[1693756377292,38.02,19.36,19.345,110.0]
[1693756378097,38.02,19.36,19.346,0.71170997]
[1693756379187,38.02,19.36,19.345,110.0]
[1693756379482,38.02,19.36,19.346,0.63136781]
[1693756380398,38.02,19.36,19.345,110.0]
[1693756380599,38.02,19.36,19.346,0.74050504]
[1693756380790,38.02,19.36,19.345,110.0]
[1693756380989,38.02,19.36,19.346,0.82447289]
[1693756381184,38.02,19.36,19.345,110.0]
[1693756381586,38.02,19.36,19.346,0.83593562]
[1693756381787,38.02,19.36,19.345,110.0]
[1693756382190,38.02,19.36,19.346,0.89770698]
[1693756382504,38.02,19.36,19.345,110.0]
[1693756383291,38.02,19.36,19.346,1.02745738]
[1693756383693,38.02,19.36,19.345,110.0]
[1693756384901,38.02,19.36,19.346,0.65342094]
[1693756385101,38.02,19.36,19.345,110.0]
[1693756389591,38.02,19.36,19.345,55.0]
[1693756391291,38.02,19.36,19.344,55.0]
[1693756391608,38.02,19.36,19.345,20.99585154]
[1693756391803,38.02,19.36,19.346,55.0]
[1693756393212,38.02,19.36,19.347,0.65334292]
[1693756394114,38.02,19.36,19.346,55.0]
[1693756404017,89.64,19.36,19.346,55.0]
[1693756406915,131.16637021,19.36,19.346,55.0]
[1693756413322,79.54637021,19.36,19.346,55.0]
[1693756425223,148.03182564,19.36,19.346,55.0]
[1693756427621,175.02473223,19.36,19.346,55.0]
[1693756432631,71.92657387,19.359,19.326,25.22102774]
[1693756432831,38.02,19.35,19.331,3.05052136]
[1693756433136,38.02,19.35,19.331,23.05052136]
[1693756433830,38.02,19.35,19.331,61.07052136]
[1693756434230,38.02,19.35,19.332,55.0]
[1693756434437,38.02,19.35,19.333,23.05052136]
[1693756434733,38.02,19.35,19.333,3.05052136]
[1693756434921,38.02,19.35,19.332,23.05052136]
[1693756435121,38.02,19.35,19.332,3.05052136]
[1693756435429,38.02,19.35,19.332,23.05052136]
[1693756435934,38.02,19.35,19.334,3.05052136]
[1693756436120,38.02,19.35,19.334,23.05052136]
[1693756436322,38.02,19.35,19.335,55.0]
[1693756436522,38.02,19.35,19.336,3.05052136]
[1693756438218,46.082,19.35,19.336,3.05052136]
[1693756438929,46.082,19.35,19.335,3.05052136]
[1693756439131,38.02,19.35,19.333,3.05052136]
[1693756440134,38.02,19.35,19.333,58.05052136]
[1693756440443,38.02,19.35,19.334,20.0]
[1693756440626,38.02,19.35,19.335,58.05052136]
[1693756441937,51.62,19.349,19.335,58.05052136]
[1693756447629,51.62,19.349,19.335,55.0]
[1693756447934,51.62,19.349,19.336,1.10590111]
[1693756448946,78.62649173,19.348,19.336,1.10590111]
[1693756453150,27.00649173,19.348,19.336,1.10590111]
[1693756458952,130.98092083,19.35,19.336,1.10590111]
[1693756462452,27.00580034,19.349,19.336,1.10590111]
[1693756464949,78.62580034,19.349,19.336,1.10590111]
[1693756472774,51.62,19.349,19.336,1.10590111]
[1693756475977,27.00635134,19.348,19.336,1.10590111]
[1693756486077,51.62,19.349,19.336,1.10590111]
[1693756488585,79.36092083,19.35,19.336,1.10590111]
[1693756488586,38.02,19.35,19.336,1.10590111]
[1693756504697,51.62,19.349,19.336,1.10590111]
[1693756504887,8.063,19.347,19.336,1.10590111]
[1693756505199,8.063,19.347,19.335,1.98817777]
[1693756505499,8.063,19.347,19.333,3.05052136]
[1693756506285,8.063,19.347,19.333,58.05052136]
[1693756506593,8.063,19.347,19.335,3.05052136]
[1693756506791,8.062,19.348,19.335,3.05052136]
[1693756506991,8.062,19.348,19.334,20.0]
[1693756507191,8.062,19.348,19.332,3.05052136]
[1693756508189,8.062,19.348,19.332,58.05052136]
[1693756508389,8.062,19.348,19.334,3.05052136]
[1693756508895,38.02,19.34,19.334,3.05052136]
[1693756509198,38.02,19.34,19.333,3.05052136]
[1693756509386,38.02,19.34,19.332,3.05052136]
[1693756510004,38.02,19.34,19.332,58.05052136]
[1693756510204,38.02,19.34,19.333,20.0]
[1693756510402,38.02,19.34,19.334,58.05052136]
[1693756510599,38.02,19.34,19.335,20.0]
[1693756510905,8.062,19.348,19.336,58.05052136]
[1693756511210,51.62,19.349,19.336,55.0]
[1693756512598,59.682,19.349,19.336,55.0]
[1693756513192,8.062,19.349,19.336,55.0]
[1693756513401,59.682,19.349,19.336,55.0]
[1693756513999,51.62,19.349,19.336,55.0]
[1693756517506,66.88525336,19.349,19.336,55.0]
[1693756524507,66.88525336,19.349,19.337,3.05052136]
[1693756524710,74.94725336,19.349,19.337,3.05052136]
[1693756525105,74.94725336,19.349,19.336,55.0]
[1693756526211,66.88525336,19.349,19.336,55.0]
[1693756526615,66.88525336,19.349,19.337,3.05052136]
[1693756528014,59.683,19.348,19.337,3.05052136]
[1693756528410,59.683,19.348,19.336,55.0]
[1693756528915,59.683,19.348,19.337,3.05052136]
[1693756529216,59.683,19.348,19.336,55.0]
[1693756529714,51.62,19.348,19.336,55.0]
[1693756530315,51.62,19.346,19.336,55.0]
[1693756531016,51.62,19.346,19.335,20.0]
[1693756531203,51.62,19.346,19.331,20.0]
[1693756531406,38.02,19.34,19.332,3.05052136]
[1693756532498,38.02,19.34,19.332,58.05052136]
[1693756532701,38.02,19.34,19.334,3.05052136]
[1693756532915,38.02,19.34,19.334,58.05052136]
[1693756533118,38.02,19.34,19.335,20.0]
[1693756533323,144.4933,19.345,19.336,55.0]
[1693756533619,144.4933,19.345,19.337,0.6732775]
[1693756533814,144.4933,19.345,19.336,55.0]
[1693756537317,144.4933,19.345,19.335,20.0]
[1693756537520,144.4933,19.345,19.336,55.0]
[1693756542922,51.62,19.344,19.328,1.82324297]
[1693756543225,38.02,19.34,19.321,23.05052136]
[1693756543524,38.02,19.34,19.323,3.05052136]
[1693756543916,89.64,19.34,19.323,3.05052136]
[1693756544823,89.64,19.34,19.323,23.05052136]
[1693756545029,89.64,19.34,19.325,3.05052136]
[1693756545213,89.64,19.34,19.325,23.05052136]
[1693756545406,89.64,19.34,19.327,3.05052136]
[1693756553129,38.02,19.34,19.327,3.05052136]
[1693756558029,78.3926708,19.34,19.327,3.05052136]
[1693756558820,38.02,19.34,19.327,3.05052136]
[1693756569035,51.62,19.346,19.33,38.02]
[1693756569226,126.8120293,19.35,19.331,78.05052136]
[1693756569227,40.66218312,19.349,19.331,78.05052136]
[1693756569434,38.02,19.35,19.331,103.84110182]
[1693756570138,51.62,19.349,19.331,103.84110182]
[1693756570637,51.62,19.349,19.331,196.91070182]
[1693756573246,38.02,19.35,19.331,196.91070182]
[1693756574432,79.21606827,19.35,19.331,196.91070182]
[1693756579949,79.21606827,19.35,19.331,212.29093978]
[1693756581842,38.02,19.35,19.331,212.29093978]
[1693756585651,38.02,19.35,19.331,254.45958953]
[1693756585855,38.02,19.35,19.332,52.93662485]
[1693756586039,38.02,19.35,19.333,103.84110182]
[1693756599660,38.02,19.35,19.333,48.84110182]
[1693756599862,38.02,19.35,19.333,23.05052136]
[1693756600065,46.082,19.35,19.333,3.05052136]
[1693756600459,38.02,19.35,19.333,3.05052136]
[1693756601368,38.02,19.35,19.333,58.05052136]
[1693756601571,38.02,19.35,19.334,20.0]
[1693756601756,38.02,19.35,19.335,58.05052136]
[1693756603070,46.082,19.35,19.335,3.05052136]
[1693756603261,38.02,19.35,19.335,3.05052136]
[1693756603573,38.02,19.35,19.333,3.05052136]
[1693756604871,38.02,19.35,19.333,58.05052136]
[1693756605173,38.02,19.35,19.334,75.0]
[1693756605366,38.02,19.35,19.335,23.05052136]
[1693756605669,38.02,19.35,19.337,3.05052136]
[1693756616176,51.62,19.358,19.337,23.05052136]
[1693756616375,96.2179,19.357,19.338,55.0]
[1693756616574,96.2179,19.357,19.339,3.05052136]
[1693756616776,96.2179,19.357,19.339,23.05052136]
[1693756616975,96.2179,19.357,19.34,55.0]
[1693756617273,96.2179,19.357,19.341,23.05052136]
[1693756617474,96.2179,19.357,19.343,3.05052136]
[1693756617676,96.2179,19.357,19.343,23.05052136]
[1693756617866,96.2179,19.357,19.345,3.05052136]
[1693756618067,96.2179,19.357,19.345,20.0]
[1693756618281,96.2179,19.357,19.346,55.0]
[1693756623171,96.2179,19.357,19.347,3.05052136]
[1693756623572,96.2179,19.357,19.346,55.0]
[1693756623972,89.64,19.36,19.347,3.05052136]
[1693756624174,107.36084505,19.359,19.347,3.05052136]
[1693756624878,107.36084505,19.359,19.346,55.0]
[1693756625079,17.22054505,19.359,19.346,55.0]
[1693756625279,107.36084505,19.359,19.346,55.0]
[1693756625479,17.22054505,19.359,19.346,55.0]
[1693756627275,82.10540383,19.359,19.346,55.0]
[1693756627584,130.99553935,19.359,19.346,55.0]
[1693756628782,221.31683935,19.359,19.346,55.0]
[1693756633278,272.93683935,19.359,19.346,55.0]
[1693756634179,113.7749943,19.358,19.346,55.0]
[1693756634375,8.059,19.356,19.346,55.0]
[1693756634577,17.22054505,19.357,19.346,55.0]
[1693756635096,44.22028636,19.357,19.346,55.0]
[1693756635390,17.22054505,19.357,19.346,55.0]
[1693756638893,51.62,19.356,19.346,55.0]
[1693756639101,76.89954505,19.356,19.346,55.0]
[1693756639591,68.84054505,19.356,19.346,55.0]
[1693756641887,51.62,19.356,19.346,55.0]
[1693756642094,141.9413,19.359,19.346,55.0]
[1693756642292,157.42061747,19.359,19.346,55.0]
[1693756643587,90.3213,19.359,19.346,55.0]
[1693756644598,38.02,19.36,19.346,55.0]
[1693756644897,38.02,19.36,19.345,55.0]
[1693756645193,38.02,19.36,19.346,1.99268273]
[1693756645897,38.02,19.36,19.345,55.0]
[1693756647606,38.02,19.36,19.346,0.61819517]
[1693756647898,38.02,19.36,19.345,55.0]
[1693756648096,38.02,19.36,19.346,0.68427767]
[1693756650602,38.02,19.36,19.345,55.0]
[1693756651487,38.02,19.36,19.346,0.68427767]
[1693756653588,55.24054505,19.36,19.341,15.59534882]
[1693756653788,55.24054505,19.36,19.343,2.1084038]
[1693756654493,82.23749936,19.36,19.343,2.1084038]
[1693756654695,82.23749936,19.36,19.343,22.7898438]
[1693756654897,82.23749936,19.36,19.344,75.0]
[1693756655093,82.23749936,19.36,19.345,2.16724275]
[1693756655405,82.23749936,19.36,19.344,75.0]
[1693756658607,38.02,19.35,19.344,75.0]
[1693756687335,98.8924,19.357,19.344,75.0]
[1693756687628,98.8924,19.357,19.345,1.10590111]
[1693756688012,38.02,19.36,19.345,1.10590111]
[1693756690839,38.02,19.36,19.344,75.0]
[1693756691028,38.02,19.36,19.345,1.10590111]
[1693756717555,63.01369709,19.36,19.345,1.10590111]
[1693756717848,38.02,19.35,19.345,20.0]
[1693756718355,38.02,19.35,19.342,20.0]
[1693756718555,38.02,19.35,19.343,3.05052136]
[1693756718956,38.02,19.35,19.343,58.05052136]
[1693756719349,38.02,19.35,19.344,20.0]
[1693756719551,38.02,19.35,19.345,58.05052136]
[1693756719962,38.02,19.35,19.345,55.0]
[1693756741576,95.092,19.356,19.345,55.0]
[1693756744678,38.02,19.35,19.345,55.0]
[1693756754588,95.092,19.356,19.345,55.0]
[1693756767293,42.21302998,19.357,19.345,55.0]
[1693756767498,51.62,19.358,19.345,55.0]
[1693756768293,51.62,19.358,19.346,0.83738618]
[1693756769493,51.62,19.358,19.345,1.06422407]
[1693756769695,51.62,19.358,19.343,2.84828827]
[1693756770277,78.61947359,19.358,19.343,2.84828827]
[1693756770880,119.38846583,19.358,19.343,57.84828827]
[1693756771093,119.38846583,19.358,19.345,2.84828827]
[1693756771297,119.38846583,19.358,19.345,57.84828827]
[1693756772893,38.02,19.35,19.345,55.0]
[1693756773794,38.02,19.35,19.339,2.84828827]
[1693756774193,38.02,19.35,19.319,250.0]
[1693756774194,38.02,19.35,19.333,15.60961737]
[1693756774398,38.02,19.35,19.334,23.05052136]
[1693756775080,38.02,19.35,19.334,61.07052136]
[1693756775887,38.02,19.35,19.335,55.0]
[1693756776087,38.02,19.35,19.336,3.05052136]
[1693756778091,89.64,19.35,19.336,3.05052136]
[1693756790297,38.02,19.35,19.336,3.05052136]
[1693756807416,46.082,19.35,19.335,3.05052136]
[1693756809120,46.082,19.35,19.335,58.05052136]
[1693756811128,38.02,19.35,19.335,58.05052136]
[1693756825443,46.082,19.35,19.335,3.05052136]
[1693756825630,97.702,19.35,19.335,3.05052136]
[1693756825831,97.702,19.35,19.335,23.05052136]
[1693756826340,140.57578868,19.35,19.334,3.05052136]
[1693756826543,38.02,19.34,19.334,3.05052136]
[1693756826734,38.02,19.34,19.328,3.05052136]
[1693756827128,38.02,19.34,19.328,71.49830936]
[1693756827341,93.5143,19.348,19.33,3.05052136]
[1693756827927,101.5773,19.348,19.33,3.05052136]
[1693756828743,93.5143,19.348,19.33,3.05052136]
[1693756829344,93.5143,19.348,19.33,58.05052136]
[1693756829543,93.5143,19.348,19.332,3.05052136]
[1693756829745,93.5143,19.348,19.332,58.05052136]
[1693756829944,93.5143,19.348,19.334,3.05052136]
[1693756830138,93.5143,19.348,19.334,58.05052136]
[1693756830445,93.5143,19.348,19.335,20.0]
[1693756830648,93.5143,19.348,19.336,58.05052136]
[1693756838857,93.5143,19.348,19.336,3.05052136]
[1693756839237,93.5143,19.348,19.33,3.05052136]
[1693756839438,38.02,19.34,19.33,3.05052136]
[1693756842037,38.02,19.34,19.33,58.05052136]
[1693756842238,38.02,19.34,19.332,3.05052136]
[1693756842434,38.02,19.34,19.332,58.05052136]
[1693756842640,38.02,19.34,19.334,3.05052136]
[1693756842940,38.02,19.34,19.334,58.05052136]
[1693756843135,38.02,19.34,19.336,3.05052136]
[1693756843352,145.1343,19.348,19.336,58.05052136]
[1693756847852,93.5143,19.348,19.336,58.05052136]
[1693756850950,38.02,19.35,19.336,58.05052136]
[1693756851157,438.12,19.36,19.337,20.0]
[1693756851461,438.12,19.36,19.341,3.05052136]
[1693756851660,96.3778,19.359,19.341,3.05052136]
[1693756851861,96.3778,19.359,19.341,78.05052136]
[1693756852257,438.12,19.36,19.341,78.05052136]
[1693756852855,96.3778,19.359,19.341,78.05052136]
[1693756853259,489.74,19.36,19.341,156.77464136]
[1693756853456,96.3778,19.358,19.341,156.77464136]
[1693756854667,24.88678868,19.358,19.341,23.05052136]
[1693756854851,24.88678868,19.358,19.341,3.05052136]
[1693756855165,24.88678868,19.358,19.339,3.05052136]
[1693756855857,24.88678868,19.358,19.339,58.05052136]
[1693756856368,24.88678868,19.358,19.34,20.0]
[1693756856567,24.88678868,19.358,19.341,58.05052136]
[1693756856769,24.88678868,19.358,19.342,20.0]
[1693756857065,24.88678868,19.358,19.343,58.05052136]
[1693756857270,24.88678868,19.358,19.344,20.0]
[1693756857467,24.88678868,19.358,19.345,58.05052136]
[1693756857965,24.88678868,19.358,19.345,55.0]
[1693756859568,89.64,19.36,19.345,55.0]
[1693756859771,89.64,19.36,19.346,3.05052136]
[1693756867861,38.02,19.36,19.346,3.05052136]
[1693756870560,1.78816763,19.364,19.35,38.02]
[1693756870771,38.02,19.37,19.351,78.05052136]
[1693756871069,1.78816763,19.369,19.351,78.05052136]
[1693756872154,1.78816763,19.369,19.351,116.07052136]
[1693756874669,1.78816763,19.369,19.351,96.07052136]
[1693756874869,1.78816763,19.369,19.352,20.0]
[1693756875071,1.78816763,19.369,19.353,58.05052136]
[1693756875379,1.78816763,19.369,19.354,20.0]
[1693756875678,1.78816763,19.369,19.355,58.05052136]
[1693756875859,1.78816763,19.369,19.355,55.0]
[1693756877168,1.78816763,19.369,19.354,20.0]
[1693756877366,1.78816763,19.369,19.351,38.02]
[1693756877367,8.054,19.368,19.355,2.60839344]
[1693756877669,8.054,19.368,19.352,20.0]
[1693756877670,9.84316763,19.367,19.352,20.0]
[1693756877872,38.02,19.36,19.348,2.84713535]
[1693756878581,38.02,19.36,19.348,40.86713535]
[1693756878885,38.02,19.36,19.348,2.84713535]
[1693756879380,46.078,19.36,19.348,2.84713535]
[1693756880078,38.02,19.36,19.348,2.84713535]
[1693756882077,38.02,19.36,19.346,2.85773186]
[1693756882267,38.02,19.36,19.346,57.85773186]
[1693756890891,46.078,19.36,19.346,57.85773186]
[1693756891381,46.078,19.36,19.342,3.05052136]
[1693756891569,46.078,19.36,19.342,23.05052136]
[1693756891984,46.078,19.36,19.342,80.90825336]
[1693756892384,46.078,19.36,19.343,55.0]
[1693756892583,46.078,19.36,19.345,3.05052136]
[1693756892784,46.078,19.36,19.345,58.05052136]
[1693756896686,46.078,19.36,19.345,3.05052136]
[1693756896880,97.698,19.36,19.344,3.05052136]
[1693756897081,97.698,19.36,19.343,3.05052136]
[1693756897990,97.698,19.36,19.343,58.05052136]
[1693756898193,97.698,19.36,19.344,20.0]
[1693756898492,97.698,19.36,19.345,58.05052136]
[1693756902890,38.02,19.35,19.344,20.0]
[1693756903087,38.02,19.35,19.341,3.05052136]
[1693756903293,38.02,19.35,19.34,0.3100695]
[1693756903486,38.02,19.35,19.338,3.05052136]
[1693756903686,38.02,19.35,19.339,0.3100695]
[1693756903886,38.02,19.35,19.34,3.05052136]
[1693756904105,38.02,19.35,19.34,58.05052136]
[1693756904298,38.02,19.35,19.341,20.0]
[1693756904602,38.02,19.35,19.342,58.05052136]